bitfinex/quotes_SOLUSD_20250318
["timestamp","ask_amount","ask_price","bid_price","bid_amount"]
[1742287122548,15.82158915,125.78,125.76,0.03]
[1742287122764,15.82158915,125.78,125.77,0.14216157]
[1742287125968,15.82158915,125.78,125.76,6.99]
[1742287126167,15.82158915,125.77,125.76,7.13216157]
[1742287127376,0.034356,125.8,125.76,7.13216157]
[1742287127679,15.82158915,125.77,125.76,7.13216157]
[1742287130896,0.034356,125.8,125.77,0.42648471]
[1742287131096,0.034356,125.8,125.79,34.61339958]
[1742287131267,0.034356,125.8,125.79,18.79181043]
[1742287131472,0.034356,125.8,125.79,34.61339958]
[1742287132300,0.097356,125.8,125.79,34.61339958]
[1742287134094,0.097356,125.8,125.79,346.61339958]
[1742287136688,0.097356,125.8,125.79,346.89772272]
[1742287136887,0.097356,125.8,125.79,354.74072272]
[1742287137187,0.097356,125.8,125.79,492.84072272]
[1742287139475,0.063,125.83,125.8,0.28432314]
[1742287139681,0.063,125.83,125.82,0.28432314]
[1742287140079,0.063,125.83,125.82,16.24807386]
[1742287141098,0.063,125.83,125.82,34.89772272]
[1742287141696,0.063,125.83,125.82,19.07613357]
[1742287142599,0.063,125.83,125.82,34.89772272]
[1742287146489,0.063,125.83,125.82,172.99772272]
[1742287146688,0.063,125.83,125.82,242.67697809]
[1742287148524,0.063,125.83,125.82,172.99772272]
[1742287149885,0.063,125.83,125.82,25.913972]
[1742287150184,0.063,125.83,125.82,26.05613357]
[1742287150396,0.063,125.83,125.82,25.913972]
[1742287150814,0.063,125.83,125.82,26.05613357]
[1742287152003,0.063,125.83,125.82,41.87772272]
[1742287153894,0.063,125.83,125.82,26.05613357]
[1742287158723,0.063,125.83,125.82,25.75181043]
[1742287163306,0.063,125.83,125.82,41.85772272]
[1742287164654,0.063,125.83,125.82,26.03613357]
[1742287164809,0.063,125.83,125.82,338.03613357]
[1742287166443,0.063,125.83,125.82,26.03613357]
[1742287166739,0.063,125.83,125.82,41.85772272]
[1742287167305,0.063,125.83,125.82,26.03613357]
[1742287172522,0.063,125.83,125.82,19.07613357]
[1742287172723,0.063,125.83,125.82,26.03613357]
[1742287179658,0.063,125.83,125.82,25.75181043]
[1742287180538,6.01933459,125.83,125.82,25.75181043]
[1742287180957,6.01933459,125.83,125.82,7.10216157]
[1742287181446,21.84092374,125.83,125.82,0.14216157]
[1742287181652,29.78812374,125.83,125.81,0.14216157]
[1742287181850,15.82158915,125.82,125.81,0.14216157]
[1742287182173,15.82158915,125.82,125.8,0.03]
[1742287182340,15.82158915,125.81,125.8,0.03]
[1742287182731,23.27842374,125.81,125.8,0.03]
[1742287182953,31.22682374,125.81,125.8,0.03]
[1742287185338,23.27842374,125.81,125.8,0.03]
[1742287190067,23.27842374,125.81,125.8,0.03]
[1742287191563,31.22682374,125.81,125.8,0.03]
[1742287194751,23.27842374,125.81,125.8,0.03]
[1742287194958,5.95633459,125.81,125.8,0.03]
[1742287195159,5.95633459,125.81,125.8,18.67964886]
[1742287195366,5.95633459,125.81,125.8,0.03]
[1742287195664,21.77792374,125.81,125.8,0.03]
[1742287200066,5.95633459,125.81,125.8,0.03]
[1742287201492,0.063,125.83,125.8,0.03]
[1742287201653,0.063,125.83,125.81,6.92]
[1742287202558,0.063,125.83,125.8,0.03]
[1742287202559,15.82158915,125.82,125.8,0.03]
[1742287202877,0.063,125.83,125.8,0.03]
[1742287202878,15.82158915,125.81,125.8,0.03]
[1742287203944,0.063,125.83,125.8,0.03]
[1742287203945,15.82158915,125.82,125.8,0.03]
[1742287204144,5.93652464,125.81,125.8,0.03]
[1742287204571,21.75811379,125.81,125.8,0.03]
[1742287205556,15.82158915,125.81,125.8,0.03]
[1742287207172,23.76998915,125.81,125.8,0.03]
[1742287208174,25.36498915,125.81,125.8,0.03]
[1742287208992,20.0,125.78,125.76,0.03]
[1742287209178,15.82158915,125.77,125.76,0.03]
[1742287210677,29.70953568,125.77,125.76,0.03]
[1742287211182,38.61127601,125.77,125.76,0.03]
[1742287213375,30.66027601,125.77,125.76,0.03]
[1742287215357,24.72332948,125.77,125.76,0.03]
[1742287216978,32.67432948,125.77,125.76,0.03]
[1742287219683,38.60949539,125.77,125.76,0.03]
[1742287227687,63.33282487,125.77,125.76,0.03]
[1742287230783,63.61714801,125.77,125.76,0.03]
[1742287231191,63.33282487,125.77,125.76,0.03]
[1742287231395,38.60949539,125.77,125.76,0.03]
[1742287233092,29.71151675,125.77,125.76,0.03]
[1742287235083,93.01292011,125.77,125.76,0.03]
[1742287238192,29.71151675,125.77,125.76,0.03]
[1742287238494,21.76051675,125.77,125.76,0.03]
[1742287240201,93.01292011,125.77,125.76,0.03]
[1742287240790,21.76051675,125.77,125.76,0.03]
[1742287244512,5.93516591,125.77,125.76,0.17216157]
[1742287245099,15.82535084,125.78,125.76,0.17216157]
[1742287246420,7.9498,125.79,125.76,0.17216157]
[1742287246708,15.82535084,125.77,125.76,0.17216157]
[1742287247211,21.77112101,125.77,125.76,0.17216157]
[1742287250407,29.72212101,125.77,125.76,0.03]
[1742287251898,93.02352437,125.77,125.76,0.03]
[1742287252501,93.30784751,125.77,125.75,0.03]
[1742287252705,85.07252437,125.76,125.75,0.03]
[1742287253997,20.0,125.74,125.73,0.0619532]
[1742287254297,43.77825084,125.74,125.73,0.0619532]
[1742287254724,49.72402101,125.74,125.73,0.0619532]
[1742287256819,49.72402101,125.74,125.73,0.0619532]
[1742287262528,49.72402101,125.74,125.73,0.0919532]
[1742287264218,49.72402101,125.74,125.73,0.03]
[1742287270146,41.77112101,125.74,125.73,0.03]
[1742287270312,21.77112101,125.74,125.73,0.03]
[1742287271208,29.72402101,125.74,125.73,0.03]
[1742287271431,21.77112101,125.74,125.73,0.03]
[1742287273734,15.82535084,125.74,125.73,0.03]
[1742287274646,15.82535084,125.74,125.72,6.57516157]
[1742287277944,8.0153,125.75,125.7,0.063]
[1742287277945,15.82535084,125.73,125.7,0.063]
[1742287278129,15.82535084,125.71,125.7,0.063]
[1742287281234,23.78015084,125.71,125.7,0.063]
[1742287282365,87.0815542,125.71,125.7,0.063]
[1742287283527,20.0,125.69,125.68,0.03]
[1742287283848,35.82535084,125.69,125.68,0.03]
[1742287285458,43.78135084,125.69,125.68,0.03]
[1742287288946,35.82535084,125.69,125.68,0.03]
[1742287289255,15.82535084,125.69,125.68,0.03]
[1742287293159,15.82535084,125.7,125.68,0.03]
[1742287294569,7.9542,125.72,125.68,0.03]
[1742287294570,15.82535084,125.69,125.68,0.03]
[1742287297153,15.82535084,125.7,125.68,0.03]
[1742287298570,15.82535084,125.71,125.68,0.03]
[1742287298870,0.063,125.7,125.68,0.03]
[1742287300068,15.88835084,125.7,125.68,0.03]
[1742287300472,15.82535084,125.69,125.68,0.03]
[1742287301268,15.88835084,125.7,125.68,0.03]
[1742287302875,15.82535084,125.69,125.68,0.03]
[1742287304978,23.78135084,125.69,125.68,0.03]
[1742287309183,15.82535084,125.69,125.68,0.03]
[1742287309879,23.78135084,125.69,125.68,0.03]
[1742287314584,15.82535084,125.69,125.68,0.03]
[1742287314778,0.063,125.7,125.68,0.03]
[1742287314958,15.82535084,125.69,125.68,0.03]
[1742287316477,15.88835084,125.7,125.68,0.17216157]
[1742287316780,15.82535084,125.69,125.68,0.03]
[1742287318787,23.78135084,125.69,125.68,0.03]
[1742287325707,15.82535084,125.69,125.68,0.03]
[1742287326367,15.88835084,125.7,125.68,0.03]
[1742287326623,0.063,125.7,125.68,0.17216157]
[1742287327769,0.063,125.7,125.68,18.82181043]
[1742287327976,0.063,125.7,125.68,34.64716127]
[1742287328692,0.063,125.7,125.68,18.82181043]
[1742287329201,0.063,125.7,125.68,34.64716127]
[1742287329697,0.063,125.7,125.68,18.82181043]
[1742287331801,0.063,125.7,125.68,34.64716127]
[1742287332605,0.063,125.7,125.68,18.82181043]
[1742287334705,0.063,125.7,125.68,0.03]
[1742287334910,15.82535084,125.69,125.68,0.03]
[1742287336392,23.78135084,125.69,125.68,0.03]
[1742287342897,15.82535084,125.69,125.68,0.03]
[1742287344012,23.78135084,125.69,125.68,0.03]
[1742287346698,15.82535084,125.69,125.68,0.03]
[1742287346905,23.78135084,125.69,125.68,0.03]
[1742287347307,15.82535084,125.69,125.68,0.03]
[1742287348424,15.88835084,125.7,125.68,0.03]
[1742287348718,15.88835084,125.7,125.68,0.17216157]
[1742287348719,0.063,125.7,125.68,0.17216157]
[1742287349132,15.88835084,125.7,125.68,0.17216157]
[1742287351102,0.063,125.7,125.68,0.17216157]
[1742287352730,15.82535084,125.69,125.68,0.03]
[1742287359110,0.063,125.7,125.68,0.03]
[1742287360440,0.063,125.7,125.69,0.14216157]
[1742287361042,0.063,125.7,125.69,18.79181043]
[1742287362434,0.063,125.7,125.69,0.14216157]
[1742287364223,0.063,125.7,125.69,18.79181043]
[1742287366920,0.063,125.7,125.69,0.14216157]
[1742287367124,0.063,125.7,125.69,34.90148441]
[1742287367524,0.063,125.7,125.69,19.07613357]
[1742287368236,0.063,125.7,125.69,0.14216157]
[1742287379643,15.88835084,125.7,125.68,19.18585777]
[1742287380227,15.82535084,125.69,125.68,19.32801934]
[1742287380841,15.82535084,125.69,125.68,7.01216157]
[1742287381234,15.82535084,125.69,125.68,0.03]
[1742287381441,23.78135084,125.69,125.68,0.03]
[1742287382947,15.82535084,125.69,125.68,0.03]
[1742287384146,23.78135084,125.69,125.68,0.03]
[1742287384845,15.82535084,125.69,125.68,0.03]
[1742287387845,15.88835084,125.7,125.68,0.03]
[1742287391150,23.84375084,125.7,125.68,0.03]
[1742287391541,15.82535084,125.69,125.68,0.03]
[1742287396165,23.78135084,125.69,125.68,0.03]
[1742287396937,63.36440336,125.7,125.69,0.14216157]
[1742287396938,0.063,125.7,125.69,0.14216157]
[1742287397360,0.063,125.7,125.69,34.90148441]
[1742287397861,0.063,125.7,125.69,0.14216157]
[1742287398866,0.063,125.7,125.69,12.45801934]
[1742287399068,0.063,125.7,125.69,28.28337018]
[1742287399267,0.063,125.7,125.69,47.21734218]
[1742287399561,0.063,125.7,125.69,31.39199134]
[1742287399736,0.063,125.7,125.69,47.21734218]
[1742287400876,0.063,125.7,125.69,359.21734218]
[1742287403769,0.063,125.7,125.69,47.21734218]
[1742287416661,0.063,125.7,125.69,47.24734218]
[1742287417844,0.063,125.74,125.7,18.933972]
[1742287418050,0.063,125.74,125.7,34.75932284]
[1742287419585,0.063,125.74,125.7,31.37454835]
[1742287419883,0.063,125.74,125.7,359.19989919]
[1742287420182,0.063,125.74,125.71,15.96751241]
[1742287420364,0.063,125.74,125.73,0.14216157]
[1742287422744,0.063,125.74,125.73,19.07613357]
[1742287423682,0.24387423,125.75,125.73,180.89459026]
[1742287423884,0.24387423,125.75,125.74,34.90148441]
[1742287424484,0.24387423,125.75,125.74,40.37816333]
[1742287425054,0.24387423,125.75,125.74,41.96782954]
[1742287425878,0.24387423,125.75,125.74,360.4196318]
[1742287426078,0.24387423,125.75,125.74,362.72579663]
[1742287426259,0.24387423,125.75,125.74,381.06976837]
[1742287427486,0.24387423,125.75,125.74,519.16976837]
[1742287429083,0.24387423,125.75,125.74,525.58021367]
[1742287429285,0.24387423,125.75,125.74,507.68413569]
[1742287430703,0.24387423,125.75,125.74,497.37785935]
[1742287431004,0.24387423,125.75,125.74,497.09353621]
[1742287431177,0.24387423,125.75,125.74,497.37785935]
[1742287431505,0.24387423,125.75,125.74,485.00148441]
[1742287432098,0.24387423,125.75,125.74,491.40990242]
[1742287433681,0.24387423,125.75,125.74,179.40990242]
[1742287433883,0.24387423,125.75,125.74,173.00148441]
[1742287435496,0.24387423,125.75,125.74,383.34148441]
[1742287438091,0.24387423,125.75,125.74,695.34148441]
[1742287438405,15.88835084,125.8,125.75,0.14216157]
[1742287438607,15.88835084,125.8,125.76,41.59932284]
[1742287439093,15.88835084,125.8,125.76,34.75932284]
[1742287439298,15.82535084,125.77,125.76,6.98216157]
[1742287439501,17.37905084,125.77,125.76,6.84]
[1742287440611,1.5537,125.77,125.76,6.84]
[1742287441749,17.37905084,125.77,125.76,6.84]
[1742287442406,17.37905084,125.77,125.75,0.14216157]
[1742287442706,15.82535084,125.76,125.75,6.98216157]
[1742287447311,17.37905084,125.77,125.75,6.98216157]
[1742287449884,1.5537,125.77,125.75,6.98216157]
[1742287450095,0.063,125.8,125.75,6.98216157]
[1742287450298,15.88835084,125.8,125.75,6.98216157]
[1742287451591,15.82535084,125.79,125.75,6.98216157]
[1742287453314,15.82535084,125.79,125.75,7.01216157]
[1742287453695,0.063,125.77,125.75,7.01216157]
[1742287455015,0.063,125.77,125.76,19.07613357]
[1742287455314,0.063,125.77,125.76,34.90148441]
[1742287455619,0.063,125.77,125.76,19.07613357]
[1742287455913,0.063,125.77,125.76,0.14216157]
[1742287456095,0.063,125.77,125.75,7.01216157]
[1742287456096,15.88835084,125.77,125.75,7.01216157]
[1742287457800,0.063,125.77,125.75,7.01216157]
[1742287460822,15.88835084,125.77,125.75,7.01216157]
[1742287461529,0.063,125.77,125.75,7.01216157]
[1742287466924,15.88835084,125.77,125.75,6.87]
[1742287467130,15.82535084,125.76,125.75,0.03]
[1742287468035,23.77695084,125.76,125.75,0.03]
[1742287468605,15.82535084,125.76,125.75,0.03]
[1742287470027,23.77695084,125.76,125.75,0.03]
[1742287470826,15.82535084,125.76,125.75,0.03]
[1742287474221,8.014,125.77,125.75,0.03]
[1742287474222,0.063,125.77,125.75,0.03]
[1742287474435,0.063,125.77,125.75,0.17216157]
[1742287475533,0.063,125.77,125.75,15.99751241]
[1742287476544,0.063,125.77,125.75,0.17216157]
[1742287477134,0.063,125.77,125.75,312.17216157]
[1742287477344,0.063,125.77,125.75,327.99751241]
[1742287478342,0.063,125.77,125.75,15.99751241]
[1742287479544,0.063,125.77,125.75,0.17216157]
[1742287481232,0.063,125.77,125.75,312.17216157]
[1742287481758,0.063,125.77,125.75,0.17216157]
[1742287485649,15.88835084,125.77,125.76,6.82]
[1742287486525,0.063,125.77,125.76,6.82]
[1742287487158,0.063,125.77,125.76,6.96216157]
[1742287503273,0.063,125.77,125.76,6.82]
[1742287503472,15.88835084,125.77,125.76,6.82]
[1742287503763,15.88835084,125.77,125.75,0.17216157]
[1742287504067,15.82535084,125.76,125.75,0.17216157]
[1742287504476,15.82535084,125.76,125.75,0.03]
[1742287505585,15.88835084,125.77,125.75,0.03]
[1742287506092,0.063,125.77,125.75,0.03]
[1742287506683,15.88835084,125.77,125.75,0.03]
[1742287508080,0.063,125.77,125.75,0.03]
[1742287511765,0.063,125.77,125.76,16.25183555]
[1742287511969,0.063,125.77,125.76,173.00148441]
[1742287512266,0.063,125.77,125.76,236.30288777]
[1742287512865,0.063,125.83,125.78,0.14216157]
[1742287513066,0.063,125.83,125.79,7.10432314]
[1742287513573,15.88835084,125.83,125.8,0.14216157]
[1742287513770,15.82535084,125.81,125.8,0.14216157]
[1742287513972,15.82535084,125.82,125.8,0.14216157]
[1742287514490,15.82535084,125.82,125.8,30.46767784]
[1742287515287,15.82535084,125.82,125.81,12.42038879]
[1742287515503,80.7669542,125.82,125.81,12.42038879]
[1742287515991,88.7147542,125.82,125.81,12.42038879]
[1742287516880,88.7147542,125.82,125.79,12.42038879]
[1742287517200,15.82535084,125.8,125.79,12.42038879]
[1742287517797,15.82535084,125.8,125.78,19.24038879]
[1742287517971,15.82535084,125.79,125.78,19.24038879]
[1742287520287,15.82535084,125.79,125.78,6.82]
[1742287523298,23.77505084,125.79,125.78,6.82]
[1742287524483,15.82535084,125.79,125.78,6.82]
[1742287524672,23.77505084,125.79,125.78,6.82]
[1742287524873,7.9497,125.79,125.78,6.82]
[1742287525082,23.77505084,125.79,125.78,6.82]
[1742287526000,23.77505084,125.79,125.78,6.85]
[1742287528796,42.4246997,125.79,125.78,0.03]
[1742287565730,15.82535084,125.79,125.78,0.03]
[1742287565929,0.063,125.8,125.78,0.03]
[1742287566125,0.063,125.8,125.78,0.17216157]
[1742287566707,0.063,125.8,125.78,0.45648471]
[1742287566914,0.063,125.8,125.79,23.96483555]
[1742287568507,0.063,125.82,125.81,20.14216157]
[1742287568717,0.063,125.83,125.82,1.64656157]
[1742287568920,0.063,125.83,125.82,17.47191241]
[1742287569443,0.063,125.83,125.82,17.75623555]
[1742287569616,0.063,125.87,125.85,15.96751241]
[1742287569811,0.063,125.87,125.86,6.82]
[1742287570731,15.82535084,125.88,125.87,0.14216157]
[1742287573240,7.9427,125.91,125.87,0.14216157]
[1742287573423,15.82535084,125.88,125.87,0.14216157]
[1742287573623,15.82535084,125.88,125.86,6.82]
[1742287573834,15.82535084,125.87,125.86,6.82]
[1742287574533,15.88835084,125.88,125.86,6.82]
[1742287576129,23.83235084,125.88,125.86,6.82]
[1742287576334,15.82535084,125.87,125.86,6.82]
[1742287578945,15.82535084,125.87,125.85,0.14216157]
[1742287580145,15.88835084,125.88,125.85,0.14216157]
[1742287582141,15.88835084,125.88,125.85,0.42648471]
[1742287582350,0.063,125.88,125.86,6.6455]
[1742287582640,0.063,125.88,125.86,318.6455]
[1742287585746,0.063,125.88,125.86,6.6455]
[1742287586848,15.88835084,125.88,125.86,6.6455]
[1742287587051,15.82535084,125.87,125.85,138.24216157]
[1742287587350,15.82535084,125.87,125.86,0.03]
[1742287594544,23.77005084,125.87,125.86,0.03]
[1742287595055,15.82535084,125.87,125.86,0.03]
[1742287596044,23.77005084,125.87,125.86,0.03]
[1742287596438,42.4196997,125.87,125.86,0.03]
[1742287597328,62.2813997,125.87,125.82,210.22]
[1742287597533,15.82535084,125.83,125.82,210.22]
[1742287597751,15.82535084,125.83,125.8,6.82]
[1742287597958,15.82535084,125.81,125.8,6.96216157]
[1742287598127,15.82535084,125.81,125.78,0.03]
[1742287598332,18.64964886,125.84,125.78,0.03]
[1742287598333,15.82535084,125.79,125.78,6.85]
[1742287598834,23.77505084,125.79,125.78,0.03]
[1742287599534,15.82535084,125.79,125.78,0.03]
[1742287601240,15.82535084,125.8,125.79,0.14216157]
[1742287601463,15.82535084,125.82,125.79,0.14216157]
[1742287604935,15.82535084,125.8,125.78,6.85]
[1742287605140,15.82535084,125.79,125.78,6.99216157]
[1742287606438,15.82535084,125.79,125.78,0.03]
[1742287607351,24.71258906,125.79,125.78,0.03]
[1742287611260,24.71258906,125.8,125.78,0.03]
[1742287611964,24.71258906,125.81,125.78,0.03]
[1742287613466,24.71258906,125.8,125.78,0.03]
[1742287615449,24.71258906,125.81,125.78,0.03]
[1742287616777,24.71258906,125.8,125.78,0.03]
[1742287617970,0.063,125.82,125.78,0.31432314]
[1742287618177,44.77558906,125.82,125.78,0.31432314]
[1742287618357,24.71258906,125.81,125.78,0.31432314]
[1742287618541,24.71258906,125.8,125.78,0.03]
[1742287619145,24.71258906,125.79,125.78,0.03]
[1742287619352,24.71258906,125.79,125.77,12.38730709]
[1742287619353,18.64964886,125.78,125.77,12.38730709]
[1742287619552,68.07482698,125.78,125.77,12.38730709]
[1742287619953,68.07482698,125.78,125.77,24.77461418]
[1742287620154,76.02512698,125.78,125.77,24.77461418]
[1742287620354,51.31253792,125.78,125.77,24.77461418]
[1742287621063,51.31253792,125.78,125.75,0.03]
[1742287621258,24.71258906,125.76,125.75,0.03]
[1742287622148,57.37677812,125.76,125.75,0.03]
[1742287623272,24.71258906,125.76,125.75,0.03]
[1742287624545,32.66418906,125.76,125.75,0.03]
[1742287624751,57.37677812,125.76,125.75,0.03]
[1742287633684,76.02642698,125.76,125.75,0.03]
[1742287635080,42.43002947,125.76,125.75,0.03]
[1742287635257,105.74515191,125.76,125.75,0.03]
[1742287639921,15.82878061,125.76,125.75,0.03]
[1742287640425,15.82878061,125.77,125.75,0.03]
[1742287640618,15.89178061,125.78,125.76,0.14216157]
[1742287640802,0.063,125.78,125.76,0.14216157]
[1742287641707,0.063,125.78,125.76,0.42648471]
[1742287643022,0.063,125.78,125.76,312.42648471]
[1742287645620,0.063,125.78,125.76,337.13060632]
[1742287645832,0.063,125.78,125.77,31.37040632]
[1742287646036,0.063,125.82,125.79,0.28432314]
[1742287646206,0.063,125.82,125.8,6.96216157]
[1742287647434,0.063,125.82,125.8,8.62746157]
[1742287647606,0.063,125.82,125.81,25.13060632]
[1742287647927,0.063,125.82,125.81,31.72630632]
[1742287648152,0.063,125.82,125.81,7.02218471]
[1742287648303,24.76712161,125.82,125.81,0.14216157]
[1742287648504,24.76712161,125.82,125.8,6.82]
[1742287648705,24.70412161,125.81,125.8,6.96216157]
[1742287649412,24.76712161,125.82,125.8,6.82]
[1742287652747,24.70412161,125.81,125.8,6.96216157]
[1742287653246,24.76712161,125.82,125.8,6.82]
[1742287654245,24.76712161,125.82,125.8,6.82]
[1742287654949,24.76712161,125.82,125.81,0.14216157]
[1742287656154,32.71492161,125.82,125.8,6.82]
[1742287656447,24.70412161,125.81,125.8,6.96216157]
[1742287657847,24.76712161,125.82,125.8,6.82]
[1742287658446,24.70412161,125.81,125.8,6.96216157]
[1742287659653,24.76712161,125.82,125.8,6.82]
[1742287661640,0.063,125.82,125.8,6.82]
[1742287663158,0.063,125.82,125.81,0.14216157]
[1742287664645,0.063,125.82,125.81,0.42648471]
[1742287666356,0.063,125.82,125.81,0.14216157]
[1742287682646,15.86515196,125.82,125.8,6.82]
[1742287682967,15.80215196,125.81,125.8,6.96216157]
[1742287683776,15.80215196,125.81,125.79,217.26216157]
[1742287683967,15.80215196,125.8,125.79,217.26216157]
[1742287685075,15.80215196,125.81,125.79,217.26216157]
[1742287688480,15.86515196,125.82,125.79,217.26216157]
[1742287689472,15.86515196,125.82,125.79,6.96216157]
[1742287691775,15.80215196,125.81,125.79,6.96216157]
[1742287692476,15.80215196,125.81,125.78,0.03]
[1742287692664,15.80215196,125.81,125.79,6.82]
[1742287694479,15.80215196,125.8,125.79,6.82]
[1742287694781,15.80215196,125.8,125.78,0.03]
[1742287695577,15.80215196,125.8,125.78,6.85]
[1742287695970,15.80215196,125.81,125.78,6.85]
[1742287696185,15.80215196,125.81,125.79,0.14216157]
[1742287697786,15.80215196,125.8,125.79,0.14216157]
[1742287698389,15.80215196,125.8,125.78,6.85]
[1742287704462,23.75125196,125.8,125.78,6.85]
[1742287704665,15.80215196,125.79,125.78,6.85]
[1742287705388,23.75185196,125.79,125.78,6.85]
[1742287705567,15.80215196,125.79,125.78,6.85]
[1742287709414,23.75185196,125.79,125.78,6.85]
[1742287710094,23.75185196,125.79,125.78,0.03]
[1742287710605,15.80215196,125.79,125.78,0.03]
[1742287710807,23.75185196,125.79,125.78,0.03]
[1742287717237,15.80215196,125.79,125.78,0.03]
[1742287718235,0.063,125.82,125.78,0.03]
[1742287718434,15.80215196,125.81,125.78,0.03]
[1742287718644,15.86515196,125.82,125.78,0.03]
[1742287718846,0.063,125.82,125.78,15.83215196]
[1742287720549,0.063,125.82,125.79,0.42648471]
[1742287720733,0.063,125.82,125.81,0.14216157]
[1742287721548,0.063,125.82,125.81,0.42648471]
[1742287721750,0.063,125.82,125.81,312.42648471]
[1742287722560,0.063,125.82,125.81,328.22863667]
[1742287722722,0.063,125.87,125.81,472.33693667]
[1742287723036,0.063,125.87,125.84,0.28432314]
[1742287723353,0.063,125.87,125.86,0.14216157]
[1742287725149,15.86515196,125.87,125.85,6.82]
[1742287726143,15.80215196,125.86,125.85,6.96216157]
[1742287727642,15.86515196,125.87,125.85,6.96216157]
[1742287730648,15.86515196,125.87,125.85,6.96216157]
[1742287732538,0.063,125.87,125.86,0.14216157]
[1742287735048,0.063,125.87,125.86,0.42648471]
[1742287736034,0.063,125.87,125.86,154.32863667]
[1742287738064,0.063,125.87,125.86,138.52648471]
[1742287740668,0.063,125.91,125.87,0.78432314]
[1742287740965,0.063,125.92,125.9,16.22863667]
[1742287741170,0.063,125.92,125.91,22.76431353]
[1742287741556,0.063,125.92,125.91,23.04863667]
[1742287741936,0.063,125.92,125.91,7.24648471]
[1742287744471,0.063,125.92,125.91,319.24648471]
[1742287745064,0.063,125.92,125.91,319.30948471]
[1742287745263,0.063,125.92,125.91,7.02516157]
[1742287746373,15.86515196,125.92,125.91,7.02516157]
[1742287748679,15.86515196,125.92,125.91,0.20516157]
[1742287748846,15.86515196,125.92,125.91,0.063]
[1742287749175,23.80665196,125.92,125.91,0.063]
[1742287751075,42.45630082,125.92,125.91,0.063]
[1742287751474,42.45630082,125.92,125.86,0.14216157]
[1742287751475,20.0,125.89,125.86,0.14216157]
[1742287751675,15.80215196,125.87,125.86,0.14216157]
[1742287752270,15.80215196,125.87,125.85,216.96]
[1742287753248,15.80215196,125.86,125.85,217.10216157]
[1742287753763,15.80215196,125.87,125.85,216.96]
[1742287754065,15.80215196,125.87,125.85,210.14]
[1742287754245,15.80215196,125.87,125.85,216.96]
[1742287754456,15.80215196,125.88,125.85,216.96]
[1742287755670,23.74615196,125.88,125.85,216.96]
[1742287755870,15.80215196,125.87,125.85,216.96]
[1742287756172,15.80215196,125.86,125.85,217.10216157]
[1742287757006,15.80215196,125.86,125.85,217.16516157]
[1742287758772,15.80215196,125.87,125.85,217.023]
[1742287759354,15.80215196,125.86,125.85,217.16516157]
[1742287759552,15.80215196,125.87,125.85,217.023]
[1742287759846,15.80215196,125.87,125.85,6.883]
[1742287760263,15.80215196,125.86,125.85,6.883]
[1742287761674,15.80215196,125.86,125.85,0.063]
[1742287761983,15.80215196,125.87,125.85,0.063]
[1742287762668,15.80215196,125.87,125.85,0.20516157]
[1742287762860,35.80215196,125.89,125.85,0.20516157]
[1742287763458,15.80215196,125.9,125.85,16.29163667]
[1742287763763,15.80215196,125.9,125.85,328.29163667]
[1742287765061,1.6496,125.92,125.85,466.39163667]
[1742287765263,15.80215196,125.91,125.87,0.42648471]
[1742287765558,15.80215196,125.91,125.88,6.82]
[1742287766468,15.80215196,125.9,125.88,6.82]
[1742287770085,15.80215196,125.89,125.88,6.82]
[1742287771258,15.80215196,125.9,125.88,6.82]
[1742287776284,23.74495196,125.9,125.88,6.82]
[1742287776487,15.80215196,125.89,125.88,6.96216157]
[1742287776692,15.80215196,125.89,125.88,6.82]
[1742287777260,23.74555196,125.89,125.88,6.82]
[1742287777560,23.74555196,125.89,125.85,7.02516157]
[1742287777862,15.80215196,125.88,125.85,7.02516157]
[1742287781986,15.80215196,125.89,125.85,7.02516157]
[1742287782364,15.80215196,125.9,125.85,7.02516157]